fUSD/lending_fUSD_20240825
["ID","MTS","AMOUNT","RATE_DAILY","PERIOD"]
[335894224,1724573463731,-500.0,0.00010992,2]
[335894225,1724573463741,-709.56,0.00010992,2]
[335894226,1724573463750,-1345.16,0.00010992,2]
[335894227,1724573463759,-500.0,0.00010992,2]
[335894228,1724573463769,-650.36,0.00010992,2]
[335894229,1724573463777,-500.0,0.00010992,2]
[335894230,1724573463787,-500.0,0.00010992,2]
[335894231,1724573463796,-4035.48,0.00010992,2]
[335894232,1724573463805,-500.0,0.00010992,2]
[335894233,1724573463815,-2320.74,0.00010992,2]
[335894234,1724573463948,-500.0,0.00010992,2]
[335894235,1724573463959,-711.78,0.00010992,2]
[335894236,1724573463968,-711.78,0.00010992,2]
[335894237,1724573463978,-601.99,0.00010992,2]
[335894238,1724573463988,-500.0,0.00010992,2]
[335894239,1724573463997,-863.84,0.00010992,2]
[335894240,1724573464007,-500.0,0.00010992,2]
[335894241,1724573464017,-151.0,0.00010992,2]
[335894242,1724573464027,-500.0,0.00010992,2]
[335894243,1724573464036,-500.0,0.00010992,2]
[335894244,1724573464045,-176.95772532,0.00010992,2]
[335894245,1724573464055,-156.165244,0.00010992,2]
[335894246,1724573464065,-3192.21,0.00010992,2]
[335894247,1724573464075,-3100.33,0.00010992,2]
[335894248,1724573464085,-1096.12,0.00010992,2]
[335894249,1724573464094,-1146.68,0.00010992,2]
[335894250,1724573464104,-156.165244,0.00010992,2]
[335894251,1724573464113,-271.10901467,0.00010992,2]
[335894252,1724573464123,-500.0,0.00010992,2]
[335894253,1724573464132,-951.87,0.00010992,2]
[335894254,1724573464141,-195.19268951,0.00010992,2]
[335894255,1724573464149,-397.21888369,0.00010992,2]
[335894256,1724573464159,-2778.06,0.00010992,2]
[335894257,1724573464174,-500.0,0.00010992,2]
[335894258,1724573464183,-500.0,0.00010992,2]
[335894259,1724573464192,-500.0,0.00010992,2]
[335894260,1724573464202,-3456.07,0.00010992,2]
[335894261,1724573464210,-1161.15,0.00010992,2]
[335894262,1724573464220,-500.0,0.00010992,2]
[335894263,1724573464229,-500.0,0.00010992,2]
[335894264,1724573464238,-500.0,0.00010992,2]
[335894265,1724573464247,-500.0,0.00010992,2]
[335894266,1724573464256,-632.89,0.00010992,2]
[335894267,1724573464265,-632.89,0.00010992,2]
[335894268,1724573464274,-4963.58,0.00010992,2]
[335894269,1724573464283,-1126.98,0.00010992,2]
[335894270,1724573464293,-903.37,0.00010992,2]
[335894271,1724573464302,-500.0,0.00010992,2]
[335894272,1724573464311,-3270.48,0.00010992,2]
[335894273,1724573464320,-500.0,0.00010992,2]
[335894274,1724573464329,-504.4077302,0.00010992,2]
[335894275,1724573464338,-500.0,0.00010992,2]
[335894276,1724573464348,-5345.47,0.00010992,2]
[335894277,1724573464357,-3540.72,0.00010992,2]
[335894278,1724573464366,-500.0,0.00010992,2]
[335894279,1724573464375,-500.0,0.00010992,2]
[335894280,1724573464385,-869.51,0.00010992,2]
[335894281,1724573464394,-151.0,0.00010992,2]
[335894282,1724573464403,-869.51,0.00010992,2]
[335894283,1724573464416,-7939.6,0.00010992,2]
[335894284,1724573464425,-638.06,0.00010992,2]
[335894285,1724573464435,-1023.92,0.00010992,2]
[335894286,1724573464444,-500.0,0.00010992,2]
[335894287,1724573464453,-5273.31,0.00010992,2]
[335894288,1724573464462,-500.0,0.00010992,2]
[335894289,1724573464472,-521.75550283,0.00010992,2]
[335894290,1724573464481,-809.94,0.00010992,2]
[335894291,1724573464491,-500.0,0.00010992,2]
[335894292,1724573464501,-1312.54,0.00010992,2]
[335894293,1724573464510,-500.0,0.00010992,2]
[335894294,1724573464519,-500.0,0.00010992,2]
[335894295,1724573464528,-500.0,0.00010992,2]
[335894296,1724573464537,-400.0,0.00010992,2]
[335894297,1724573464546,-500.0,0.00010992,2]
[335894298,1724573464555,-650.55,0.00010992,2]
[335894299,1724573464564,-503.20313381,0.00010992,2]
[335894300,1724573464573,-11847.99,0.00010992,2]
[335894301,1724573464582,-500.0,0.00010992,2]
[335894302,1724573464591,-500.0,0.00010992,2]
[335894303,1724573464600,-500.0,0.00010992,2]
[335894304,1724573464614,-500.0,0.00010992,2]
[335894305,1724573464623,-500.0,0.00010992,2]
[335894306,1724573464632,-500.0,0.00010992,2]
[335894307,1724573464642,-2402.00740994,0.00010992,2]
[335894308,1724573464651,-745.42,0.00010993,2]
[335894309,1724573464661,-500.0,0.00010993,2]
[335894310,1724573464673,-500.0,0.00010993,2]
[335894311,1724573464682,-500.0,0.00010993,2]
[335894312,1724573464691,-500.0,0.00010993,2]
[335894313,1724573464701,-500.0,0.00010993,2]
[335894314,1724573464711,-360.25,0.00010993,2]
[335894315,1724573464720,-500.0,0.00010993,2]
[335894316,1724573464730,-173.14586851,0.00010993,2]
[335894317,1724573464740,-500.0,0.00010993,2]
[335894318,1724573464749,-500.0,0.00010993,2]
[335894319,1724573464759,-500.0,0.00010993,2]
[335894320,1724573464768,-500.0,0.00010993,2]
[335894321,1724573464777,-500.0,0.00010993,2]
[335894322,1724573464786,-500.0,0.00010993,2]
[335894323,1724573464795,-324.01740567,0.00010993,2]
[335894324,1724573464804,-500.0,0.00010993,2]
[335894325,1724573464813,-500.0,0.00010993,2]
[335894326,1724573464822,-420.13748213,0.00010993,2]
[335894327,1724573464831,-500.0,0.00010993,2]
[335894328,1724573464841,-500.0,0.00010993,2]
[335894329,1724573464850,-151.0,0.00010993,2]
[335894330,1724573464860,-151.0,0.00010993,2]
[335894331,1724573464869,-500.0,0.00010993,2]
[335894332,1724573464878,-500.0,0.00010993,2]
[335894333,1724573464888,-586.18,0.00010993,2]
[335894334,1724573464897,-586.18,0.00010993,2]
[335894335,1724573464906,-415.68,0.00010993,2]
[335894336,1724573464915,-151.0,0.00010993,2]
[335894337,1724573464924,-151.0,0.00010993,2]
[335894338,1724573464933,-151.0,0.00010993,2]
[335894339,1724573464942,-266.613066,0.00010993,2]
[335894340,1724573464951,-266.613066,0.00010993,2]
[335894341,1724573464960,-151.0,0.00010993,2]
[335894342,1724573464969,-423.71719325,0.00010993,2]
[335894343,1724573464979,-500.0,0.00010993,2]
[335894344,1724573464988,-500.0,0.00010993,2]
[335894345,1724573464997,-3130.07,0.00010993,2]
[335894346,1724573465006,-500.0,0.00010993,2]
[335894347,1724573465015,-500.0,0.00010993,2]
[335894348,1724573465024,-500.0,0.00010993,2]
[335894349,1724573465033,-905.97,0.00010993,2]
[335894350,1724573465042,-500.0,0.00010993,2]
[335894351,1724573465051,-1143.85,0.00010993,2]
[335894352,1724573465060,-151.0,0.00010993,2]
[335894353,1724573465069,-1824.36,0.00010993,2]
[335894354,1724573465078,-500.0,0.00010993,2]
[335894355,1724573465087,-1841.05,0.00010993,2]
[335894356,1724573465096,-1525.6,0.00010993,2]
[335894357,1724573465106,-223.858382,0.00010993,2]
[335894358,1724573465116,-223.858382,0.00010993,2]
[335894359,1724573465125,-1732.82,0.00010993,2]
[335894360,1724573465134,-500.0,0.00010993,2]
[335894361,1724573465144,-921.53,0.00010993,2]
[335894362,1724573465154,-500.0,0.00010993,2]
[335894363,1724573465165,-314.81,0.00010993,2]
[335894364,1724573465174,-678.41,0.00010993,2]
[335894365,1724573465183,-352.75,0.00010993,2]
[335894366,1724573465193,-725.65,0.00010993,2]
[335894367,1724573465202,-725.65,0.00010993,2]
[335894368,1724573465211,-417.8126017,0.00010993,2]
[335894369,1724573465220,-500.0,0.00010993,2]
[335894370,1724573465230,-1213.87,0.00010993,2]
[335894371,1724573465239,-500.0,0.00010993,2]
[335894372,1724573465248,-621.76,0.00010993,2]
[335894373,1724573465258,-500.0,0.00010993,2]
[335894374,1724573465269,-500.0,0.00010993,2]
[335894375,1724573465278,-500.0,0.00010993,2]
[335894376,1724573465288,-500.0,0.00010993,2]
[335894377,1724573465298,-500.0,0.00010993,2]
[335894378,1724573465307,-500.0,0.00010993,2]
[335894379,1724573465316,-500.0,0.00010993,2]
[335894380,1724573465325,-557.51,0.00010993,2]
[335894381,1724573465335,-557.51,0.00010993,2]
[335894382,1724573465344,-225.73345416,0.00010993,2]
[335894383,1724573465354,-1191.68,0.00010993,2]
[335894384,1724573465363,-500.0,0.00010993,2]
[335894385,1724573465373,-500.0,0.00010993,2]
[335894386,1724573465382,-1295.8,0.00010993,2]
[335894387,1724573465392,-500.0,0.00010993,2]
[335894388,1724573465401,-500.0,0.00010993,2]
[335894389,1724573465411,-500.0,0.00010993,2]
[335894390,1724573465423,-500.0,0.00010993,2]
[335894391,1724573465433,-500.0,0.00010993,2]
[335894392,1724573465442,-500.0,0.00010993,2]
[335894393,1724573465451,-211.747823,0.00010993,2]
[335894394,1724573465461,-563.94605138,0.00010993,2]
[335894395,1724573465471,-500.0,0.00010993,2]
[335894396,1724573465481,-500.0,0.00010993,2]
[335894397,1724573465492,-1534.53,0.00010993,2]
[335894398,1724573465502,-500.0,0.00010993,2]
[335894399,1724573465511,-509.58,0.00010993,2]
[335894400,1724573465519,-500.0,0.00010993,2]
[335894401,1724573465530,-748.03,0.00010993,2]
[335894402,1724573465539,-1077.64,0.00010993,2]
[335894403,1724573465548,-500.0,0.00010993,2]
[335894404,1724573465557,-500.0,0.00010993,2]
[335894405,1724573465567,-500.0,0.00010993,2]
[335894406,1724573465576,-500.0,0.00010993,2]
[335894407,1724573465586,-500.0,0.00010993,2]
[335894408,1724573465596,-500.0,0.00010993,2]
[335894409,1724573465608,-500.0,0.00010993,2]
[335894410,1724573465619,-500.0,0.00010993,2]
[335894411,1724573465628,-500.0,0.00010993,2]
[335894412,1724573465637,-566.8,0.00010993,2]
[335894413,1724573465647,-566.8,0.00010993,2]
[335894414,1724573465656,-500.0,0.00010993,2]
[335894415,1724573465667,-500.0,0.00010993,2]
[335894416,1724573465677,-500.0,0.00010993,2]
[335894417,1724573465689,-500.0,0.00010993,2]
[335894418,1724573465698,-500.0,0.00010993,2]
[335894419,1724573465708,-500.0,0.00010993,2]
[335894420,1724573465718,-500.0,0.00010993,2]
[335894421,1724573465727,-500.0,0.00010993,2]
[335894422,1724573465736,-500.0,0.00010993,2]
[335894423,1724573465746,-500.0,0.00010993,2]
[335894424,1724573465755,-500.0,0.00010993,2]
[335894425,1724573465764,-264.364301,0.00010993,2]
[335894426,1724573465774,-605.55,0.00010993,2]
[335894427,1724573465783,-500.0,0.00010993,2]
[335894428,1724573465792,-264.364301,0.00010993,2]
[335894429,1724573465802,-507.25143377,0.00010993,2]
[335894430,1724573465811,-546.58,0.00010993,2]
[335894431,1724573465821,-500.0,0.00010993,2]
[335894432,1724573465830,-500.0,0.00010993,2]
[335894433,1724573465839,-500.0,0.00010993,2]
[335894434,1724573465849,-500.0,0.00010993,2]
[335894435,1724573465859,-500.0,0.00010993,2]
[335894436,1724573465868,-500.0,0.00010993,2]
[335894437,1724573465878,-500.0,0.00010993,2]
[335894438,1724573465888,-500.0,0.00010993,2]
[335894439,1724573465897,-500.0,0.00010993,2]
[335894440,1724573465906,-270.58345467,0.00010993,2]
[335894441,1724573465917,-500.0,0.00010993,2]
[335894442,1724573465926,-500.0,0.00010993,2]
[335894443,1724573465935,-554.33923797,0.00010993,2]
[335894444,1724573465944,-500.0,0.00010993,2]
[335894445,1724573465953,-949.79,0.00010993,2]
[335894446,1724573465961,-500.0,0.00010993,2]
[335894447,1724573465971,-949.79,0.00010993,2]
[335894448,1724573465979,-500.0,0.00010993,2]
[335894449,1724573465989,-500.0,0.00010993,2]
[335894450,1724573465998,-500.0,0.00010993,2]
[335894451,1724573466007,-500.0,0.00010993,2]
[335894452,1724573466016,-500.0,0.00010993,2]
[335894453,1724573466026,-500.0,0.00010993,2]
[335894454,1724573466035,-151.0,0.00010993,2]
[335894455,1724573466148,-151.0,0.00010993,2]
[335894456,1724573466168,-151.0,0.00010993,2]
[335894457,1724573466177,-500.0,0.00010993,2]
[335894458,1724573466186,-500.0,0.00010993,2]
[335894459,1724573466195,-500.0,0.00010993,2]
[335894460,1724573466205,-500.0,0.00010993,2]
[335894461,1724573466214,-500.0,0.00010993,2]
[335894462,1724573466223,-500.0,0.00010993,2]
[335894463,1724573466232,-348.83775313,0.00010993,2]
[335894464,1724573466241,-151.0,0.00010993,2]
[335894465,1724573466250,-500.0,0.00010993,2]
[335894466,1724573466260,-352.22786903,0.00010993,2]
[335894467,1724573466269,-500.0,0.00010993,2]
[335894468,1724573466278,-500.0,0.00010993,2]
[335894469,1724573466287,-623.11,0.00010993,2]
[335894470,1724573466296,-500.0,0.00010993,2]
[335894471,1724573466305,-500.0,0.00010993,2]
[335894472,1724573466315,-500.0,0.00010993,2]
[335894473,1724573466324,-500.0,0.00010993,2]
[335894474,1724573466333,-500.0,0.00010993,2]
[335894475,1724573466343,-500.0,0.00010993,2]
[335894476,1724573466352,-500.0,0.00010993,2]
[335894477,1724573466361,-500.0,0.00010993,2]
[335894478,1724573466370,-500.0,0.00010993,2]
[335894479,1724573466379,-500.0,0.00010993,2]
[335894480,1724573466388,-500.0,0.00010993,2]
[335894481,1724573466399,-151.0,0.00010993,2]
[335894482,1724573466408,-500.0,0.00010993,2]
[335894483,1724573466421,-500.0,0.00010993,2]
[335894484,1724573466431,-500.0,0.00010993,2]
[335894485,1724573466440,-500.0,0.00010993,2]
[335894486,1724573466450,-500.0,0.00010993,2]
[335894487,1724573466460,-500.0,0.00010993,2]
[335894488,1724573466471,-500.0,0.00010993,2]
[335894489,1724573466482,-604.15,0.00010993,2]
[335894490,1724573466492,-604.15,0.00010993,2]
[335894491,1724573466503,-500.0,0.00010993,2]
[335894492,1724573466512,-190.831073,0.00010993,2]
[335894493,1724573466522,-500.0,0.00010993,2]
[335894494,1724573466532,-500.0,0.00010993,2]
[335894495,1724573466541,-190.831073,0.00010993,2]
[335894496,1724573466550,-500.0,0.00010993,2]
[335894497,1724573466559,-151.0,0.00010993,2]
[335894498,1724573466569,-500.0,0.00010993,2]
[335894499,1724573466578,-151.0,0.00010993,2]
[335894500,1724573466587,-500.0,0.00010993,2]
[335894501,1724573466596,-500.0,0.00010993,2]
[335894502,1724573466607,-500.0,0.00010993,2]
[335894503,1724573466616,-500.0,0.00010993,2]
[335894504,1724573466626,-500.0,0.00010993,2]
[335894505,1724573466640,-500.0,0.00010993,2]
[335894506,1724573466650,-500.0,0.00010993,2]
[335894507,1724573466659,-500.0,0.00010993,2]
[335894508,1724573466670,-500.0,0.00010993,2]
[335894509,1724573466681,-500.0,0.00010993,2]
[335894510,1724573466690,-563.35,0.00010993,2]
[335894511,1724573466699,-563.35,0.00010993,2]
[335894512,1724573466709,-500.0,0.00010993,2]
[335894513,1724573466719,-500.0,0.00010993,2]
[335894514,1724573466728,-151.0,0.00010993,2]
[335894515,1724573466738,-151.0,0.00010993,2]
[335894516,1724573466747,-500.0,0.00010993,2]
[335894517,1724573466756,-500.0,0.00010993,2]
[335894518,1724573466765,-151.0,0.00010993,2]
[335894519,1724573466775,-151.0,0.00010993,2]
[335894520,1724573466784,-500.0,0.00010993,2]
[335894521,1724573466794,-500.0,0.00010993,2]
[335894522,1724573466803,-500.0,0.00010993,2]
[335894523,1724573466812,-500.0,0.00010993,2]
[335894524,1724573466822,-2262.16,0.00010993,2]
[335894525,1724573466831,-500.0,0.00010993,2]
[335894526,1724573466843,-500.0,0.00010993,2]
[335894527,1724573466853,-599.7,0.00010993,2]
[335894528,1724573466862,-599.7,0.00010993,2]
[335894529,1724573466873,-549.5,0.00010993,2]
[335894530,1724573466882,-725.8,0.00010993,2]
[335894531,1724573466891,-500.0,0.00010993,2]
[335894532,1724573466901,-500.0,0.00010993,2]
[335894533,1724573466911,-500.0,0.00010993,2]
[335894534,1724573466922,-500.0,0.00010993,2]
[335894535,1724573466930,-500.0,0.00010993,2]
[335894536,1724573466939,-500.0,0.00010993,2]
[335894537,1724573466948,-500.0,0.00010993,2]
[335894538,1724573466958,-500.0,0.00010993,2]
[335894539,1724573466967,-6793.26,0.00010993,2]
[335894540,1724573466976,-6793.26,0.00010993,2]
[335894541,1724573466986,-500.0,0.00010993,2]
[335894542,1724573466996,-500.0,0.00010993,2]
[335894543,1724573467007,-500.0,0.00010993,2]
[335894544,1724573467017,-846.75,0.00010993,2]
[335894545,1724573467026,-846.75,0.00010993,2]
[335894546,1724573467038,-500.0,0.00010993,2]
[335894547,1724573467047,-1527.82,0.00010993,2]
[335894548,1724573467056,-1315.44,0.00010993,2]
[335894549,1724573467065,-500.0,0.00010993,2]
[335894550,1724573467074,-500.0,0.00010993,2]
[335894551,1724573467083,-579.91,0.00010993,2]
[335894552,1724573467092,-500.0,0.00010993,2]
[335894553,1724573467101,-500.0,0.00010993,2]
[335894554,1724573467110,-500.0,0.00010993,2]
[335894555,1724573467119,-500.0,0.00010993,2]
[335894556,1724573467128,-500.0,0.00010993,2]
[335894557,1724573467137,-192.056815,0.00010993,2]
[335894558,1724573467146,-500.0,0.00010993,2]
[335894559,1724573467155,-1126.45,0.00010993,2]
[335894560,1724573467165,-192.056815,0.00010993,2]
[335894561,1724573467174,-1126.45,0.00010993,2]
[335894562,1724573467183,-500.0,0.00010993,2]
[335894563,1724573467192,-348.42522,0.00010993,2]
[335894564,1724573467201,-192.056815,0.00010993,2]
[335894565,1724573467211,-192.056815,0.00010993,2]
[335894566,1724573467220,-348.42522,0.00010993,2]
[335894567,1724573467229,-1321.25,0.00010993,2]
[335894568,1724573467238,-680.48,0.00010993,2]
[335894569,1724573467247,-838.53,0.00010993,2]
[335894570,1724573467255,-1276.9,0.00010993,2]
[335894571,1724573467264,-4610.99,0.00010993,2]
[335894572,1724573467273,-549.34,0.00010993,2]
[335894573,1724573467282,-152.605187,0.00010993,2]
[335894574,1724573467291,-152.605187,0.00010993,2]
[335894575,1724573467300,-2112.53,0.00010993,2]
[335894576,1724573467309,-150.102167,0.00010993,2]
[335894577,1724573467318,-500.0,0.00010993,2]
[335894578,1724573467327,-500.0,0.00010993,2]
[335894579,1724573467336,-4083.83,0.00010993,2]
[335894580,1724573467345,-2551.413537,0.00010993,2]
[335894581,1724573467354,-2551.413537,0.00010993,2]
[335894582,1724573467364,-500.0,0.00010993,2]
[335894583,1724573467376,-554.75,0.00010993,2]
[335894584,1724573467385,-1942.65,0.00010993,2]
[335894585,1724573467394,-1317.96,0.00010993,2]
[335894586,1724573467403,-1942.65,0.00010993,2]
[335894587,1724573467412,-1556.521208,0.00010993,2]
[335894588,1724573467422,-1556.521208,0.00010993,2]
[335894589,1724573467431,-500.0,0.00010993,2]
[335894590,1724573467440,-500.0,0.00010993,2]
[335894591,1724573467450,-1752.860794,0.00010993,2]
[335894592,1724573467459,-500.0,0.00010993,2]
[335894593,1724573467468,-1752.860794,0.00010993,2]
[335894594,1724573467477,-742.32,0.00010993,2]
[335894595,1724573467486,-500.0,0.00010993,2]
[335894596,1724573467495,-7844.32,0.00010993,2]
[335894597,1724573467504,-1084.51,0.00010993,2]
[335894598,1724573467513,-500.0,0.00010993,2]
[335894599,1724573467522,-1084.51,0.00010993,2]
[335894600,1724573467531,-577.46,0.00010993,2]
[335894601,1724573467540,-2626.99,0.00010993,2]
[335894602,1724573467549,-584.51,0.00010993,2]
[335894603,1724573467559,-500.0,0.00010993,2]
[335894604,1724573467568,-500.0,0.00010993,2]
[335894605,1724573467578,-500.0,0.00010993,2]
[335894606,1724573467587,-881.04,0.00010993,2]
[335894607,1724573467596,-826.84,0.00010993,2]
[335894608,1724573467605,-2050.49,0.00010993,2]
[335894609,1724573467614,-2050.49,0.00010993,2]
[335894610,1724573467624,-529.32,0.00010993,2]
[335894611,1724573467637,-500.0,0.00010993,2]
[335894612,1724573467647,-1570.78,0.00010993,2]
[335894613,1724573467656,-500.0,0.00010993,2]
[335894614,1724573467667,-500.0,0.00010993,2]
[335894615,1724573467677,-500.0,0.00010993,2]
[335894616,1724573467686,-848.62,0.00010993,2]
[335894617,1724573467696,-848.62,0.00010993,2]
[335894618,1724573467705,-500.0,0.00010993,2]
[335894619,1724573467715,-500.0,0.00010993,2]
[335894620,1724573467724,-500.0,0.00010993,2]
[335894621,1724573467734,-978.58,0.00010993,2]
[335894622,1724573467743,-833.23,0.00010993,2]
[335894623,1724573467752,-1910.97,0.00010993,2]
[335894624,1724573467762,-500.0,0.00010993,2]
[335894625,1724573467771,-1910.97,0.00010993,2]
[335894626,1724573467782,-500.0,0.00010993,2]
[335894627,1724573467792,-500.0,0.00010993,2]
[335894628,1724573467802,-500.0,0.00010993,2]
[335894629,1724573467812,-500.0,0.00010993,2]
[335894630,1724573467822,-1200.58,0.00010993,2]
[335894631,1724573467831,-1200.58,0.00010993,2]
[335894632,1724573467841,-4053.09,0.00010993,2]
[335894633,1724573467850,-500.0,0.00010993,2]
[335894634,1724573467860,-561.08,0.00010993,2]
[335894635,1724573467869,-561.08,0.00010993,2]
[335894636,1724573467878,-500.0,0.00010993,2]
[335894637,1724573467887,-560.9,0.00010993,2]
[335894638,1724573467897,-500.0,0.00010993,2]
[335894639,1724573467906,-7579.76,0.00010993,2]
[335894640,1724573467916,-500.0,0.00010993,2]
[335894641,1724573467925,-1375.29,0.00010993,2]
[335894642,1724573467934,-332.41309308,0.00010993,2]
[335894643,1724573467943,-341.03511337,0.00010993,2]
[335894644,1724573467953,-500.0,0.00010993,2]
[335894645,1724573467962,-849.4,0.00010993,2]
[335894646,1724573467971,-849.4,0.00010993,2]
[335894647,1724573467980,-500.0,0.00010993,2]
[335894648,1724573467990,-500.0,0.00010993,2]
[335894649,1724573467999,-954.42,0.00010993,2]
[335894650,1724573468008,-500.0,0.00010993,2]
[335894651,1724573468018,-596.23315117,0.00010993,2]
[335894652,1724573468027,-500.0,0.00010993,2]
[335894653,1724573468036,-500.0,0.00010993,2]
[335894654,1724573468045,-1025.94,0.00010993,2]
[335894655,1724573468054,-788.65,0.00010993,2]
[335894656,1724573468064,-3650.91,0.00010993,2]
[335894657,1724573468073,-500.0,0.00010993,2]
[335894658,1724573468082,-709.56,0.00010993,2]
[335894659,1724573468200,-1345.16,0.00010993,2]
[335894660,1724573468210,-709.56,0.00010993,2]
[335894661,1724573468219,-500.0,0.00010993,2]
[335894662,1724573468228,-500.0,0.00010993,2]
[335894663,1724573468237,-650.36,0.00010993,2]
[335894664,1724573468246,-500.0,0.00010993,2]
[335894665,1724573468256,-500.0,0.00010993,2]
[335894666,1724573468265,-320.42890203,0.00010993,2]
[335894667,1724573468274,-4035.48,0.00010993,2]
[335894668,1724573468283,-500.0,0.00010993,2]
[335894669,1724573468293,-2320.74,0.00010993,2]
[335894670,1724573468303,-2320.74,0.00010993,2]
[335894671,1724573468312,-500.0,0.00010993,2]
[335894672,1724573468321,-500.0,0.00010993,2]
[335894673,1724573468330,-711.78,0.00010993,2]
[335894674,1724573468339,-601.99,0.00010993,2]
[335894675,1724573468349,-500.0,0.00010993,2]
[335894676,1724573468358,-863.84,0.00010993,2]
[335894677,1724573468367,-863.84,0.00010993,2]
[335894678,1724573468376,-500.0,0.00010993,2]
[335894679,1724573468385,-151.0,0.00010993,2]
[335894680,1724573468395,-151.0,0.00010993,2]
[335894681,1724573468404,-500.0,0.00010993,2]
[335894682,1724573468414,-156.165244,0.00010993,2]
[335894683,1724573468423,-156.165244,0.00010993,2]
[335894684,1724573468433,-3192.21,0.00010993,2]
[335894685,1724573468442,-3100.33,0.00010993,2]
[335894686,1724573468451,-3100.33,0.00010993,2]
[335894687,1724573468460,-1096.12,0.00010993,2]
[335894688,1724573468470,-1146.68,0.00010993,2]
[335894689,1724573468479,-500.0,0.00010993,2]
[335894690,1724573468488,-500.0,0.00010993,2]
[335894691,1724573468497,-156.165244,0.00010993,2]
[335894692,1724573468507,-156.165244,0.00010993,2]
[335894693,1724573468516,-500.0,0.00010993,2]
[335894694,1724573468526,-951.87,0.00010993,2]
[335894695,1724573468535,-951.87,0.00010993,2]
[335894696,1724573468544,-2778.06,0.00010993,2]
[335894697,1724573468555,-500.0,0.00010993,2]
[335894698,1724573468565,-2778.06,0.00010993,2]
[335894699,1724573468574,-500.0,0.00010993,2]
[335894700,1724573468583,-500.0,0.00010993,2]
[335894701,1724573468593,-3456.07,0.00010993,2]
[335894702,1724573468603,-1161.15,0.00010993,2]
[335894703,1724573468613,-1161.15,0.00010993,2]
[335894704,1724573468623,-500.0,0.00010993,2]
[335894705,1724573468638,-500.0,0.00010993,2]
[335894706,1724573468647,-500.0,0.00010993,2]
[335894707,1724573468657,-500.0,0.00010993,2]
[335894708,1724573468668,-632.89,0.00010993,2]
[335894709,1724573468680,-4963.58,0.00010993,2]
[335894710,1724573468690,-1126.98,0.00010993,2]
[335894711,1724573468699,-903.37,0.00010993,2]
[335894712,1724573468711,-1126.98,0.00010993,2]
[335894713,1724573468720,-903.37,0.00010993,2]
[335894714,1724573468729,-500.0,0.00010993,2]
[335894715,1724573468739,-3270.48,0.00010993,2]
[335894716,1724573468748,-3270.48,0.00010993,2]
[335894717,1724573468757,-500.0,0.00010993,2]
[335894718,1724573468767,-500.0,0.00010993,2]
[335894719,1724573468777,-5345.47,0.00010993,2]
[335894720,1724573468786,-3540.72,0.00010993,2]
[335894721,1724573468795,-500.0,0.00010993,2]
[335894722,1724573468804,-500.0,0.00010993,2]
[335894723,1724573468813,-500.0,0.00010993,2]